[Event "Sabato rapido!"]
[Site "Chess.com"]
[Date "2020.05.16"]
[Round "2"]
[White "sirmale49"]
[Black "Mrtre7"]
[Result "1/2-1/2"]
[WhiteElo "1417"]
[BlackElo "1467"]
[TimeControl "720+3"]
[EndTime "6:39:21 PDT"]
[Termination "Patta d'accordo"]

1. e4 {[%clk 0:12:02.9]} 1... c5 {[%clk 0:12:00.5]} 2. f4 {[%clk 0:12:01.2]}
2... g6 {[%clk 0:12:00.6]} 3. Nf3 {[%clk 0:11:59]} 3... Bg7 {[%clk 0:11:58]} 4.
Nc3 {[%clk 0:11:58.6]} 4... e6 {[%clk 0:11:57.8]} 5. d4 {[%clk 0:11:56.7]} 5...
cxd4 {[%clk 0:11:58.9]} 6. Nxd4 {[%clk 0:11:57.7]} 6... Nc6 {[%clk 0:11:51.6]}
7. Be3 {[%clk 0:11:47.8]} 7... Nge7 {[%clk 0:11:45.3]} 8. Bb5 {[%clk 0:11:21.8]}
8... O-O {[%clk 0:11:42.9]} 9. O-O {[%clk 0:10:41.2]} 9... Qb6 {[%clk 0:10:43]}
10. Nf5 {[%clk 0:09:44.6]} 10... Qd8 {[%clk 0:10:28.9]} 11. Nxg7 {[%clk
0:09:34.9]} 11... Kxg7 {[%clk 0:10:30.6]} 12. f5 {[%clk 0:09:24.9]} 12... exf5
{[%clk 0:10:19]} 13. Bd4+ {[%clk 0:08:56.8]} 13... Kg8 {[%clk 0:09:49.3]} 14.
Bc5 {[%clk 0:08:50.1]} 14... Re8 {[%clk 0:09:33.3]} 15. Nd5 {[%clk 0:08:36.3]}
15... Nxd5 {[%clk 0:09:08]} 16. exd5 {[%clk 0:08:16.8]} 16... Ne5 {[%clk
0:08:53.7]} 17. Re1 {[%clk 0:07:58]} 17... a6 {[%clk 0:08:44.2]} 18. Ba4 {[%clk
0:07:42.7]} 18... b5 {[%clk 0:08:45.8]} 19. Bb3 {[%clk 0:07:43.5]} 19... d6
{[%clk 0:08:47.3]} 20. Bd4 {[%clk 0:07:34.9]} 20... Bb7 {[%clk 0:08:18.5]} 21.
Bxe5 {[%clk 0:07:21.7]} 21... Rxe5 {[%clk 0:07:41.2]} 22. Rxe5 {[%clk
0:07:17.7]} 22... dxe5 {[%clk 0:07:42.7]} 23. c4 {[%clk 0:07:09.1]} 23... bxc4
{[%clk 0:07:29.6]} 24. Bxc4 {[%clk 0:07:08.6]} 24... Rc8 {[%clk 0:07:27.5]} 25.
b3 {[%clk 0:07:10.2]} 25... Qd6 {[%clk 0:07:22.6]} 26. Qf3 {[%clk 0:06:39.9]}
26... e4 {[%clk 0:07:21]} 27. Qg3 {[%clk 0:06:36.8]} 27... Qxg3 {[%clk
0:06:58.3]} 28. hxg3 {[%clk 0:06:36.6]} 28... Rd8 {[%clk 0:07:00]} 29. Rd1
{[%clk 0:06:35.1]} 29... Kg7 {[%clk 0:06:55.7]} 30. Kf2 {[%clk 0:06:35.7]} 30...
Kf6 {[%clk 0:06:51.7]} 31. Ke3 {[%clk 0:06:36.2]} 31... Ke5 {[%clk 0:06:46]} 32.
d6 {[%clk 0:06:33]} 32... Rxd6 {[%clk 0:06:31.9]} 33. Rxd6 {[%clk 0:06:30.8]}
33... Kxd6 {[%clk 0:06:33.6]} 34. Bxf7 {[%clk 0:06:32.1]} 34... Ke5 {[%clk
0:06:25.5]} 35. Bg8 {[%clk 0:06:31.3]} 35... h6 {[%clk 0:06:27.1]} 36. Bh7
{[%clk 0:06:31.9]} 36... g5 {[%clk 0:06:28.3]} 37. Bg6 {[%clk 0:06:18.3]} 37...
f4+ {[%clk 0:06:25]} 38. gxf4+ {[%clk 0:06:19.8]} 38... gxf4+ {[%clk 0:06:26.8]}
39. Ke2 {[%clk 0:06:14.5]} 39... e3 {[%clk 0:06:28.2]} 40. g3 {[%clk 0:05:59.5]}
40... Be4 {[%clk 0:05:00.2]} 41. gxf4+ {[%clk 0:05:55.5]} 41... Kxf4 {[%clk
0:05:01.7]} 42. Bh5 {[%clk 0:05:51.5]} 42... Bf5 {[%clk 0:04:07.3]} 43. a3
{[%clk 0:05:35.5]} 43... Bg4+ {[%clk 0:03:44.6]} 44. Bxg4 {[%clk 0:05:28.1]}
44... Kxg4 {[%clk 0:03:46.2]} 45. Kxe3 {[%clk 0:05:30]} 45... Kg3 {[%clk
0:03:46.5]} 46. Ke2 {[%clk 0:05:27.9]} 46... h5 {[%clk 0:03:47.7]} 47. Kf1
{[%clk 0:05:28.6]} 47... Kh2 {[%clk 0:03:49.5]} 48. b4 {[%clk 0:05:29.4]} 48...
Kg3 {[%clk 0:03:30.2]} 49. Kg1 {[%clk 0:05:30.3]} 49... Kf4 {[%clk 0:03:04.9]}
50. a4 {[%clk 0:05:31.5]} 50... Ke5 {[%clk 0:03:03.3]} 51. b5 {[%clk 0:05:33.3]}
51... axb5 {[%clk 0:03:04.6]} 52. axb5 {[%clk 0:05:35.2]} 52... Kd6 {[%clk
0:03:04.1]} 1/2-1/2

[Event "Sabato rapido!"]
[Site "Chess.com"]
[Date "2020.05.16"]
[Round "2"]
[White "fisherpez"]
[Black "laremaro"]
[Result "1/2-1/2"]
[WhiteElo "1517"]
[BlackElo "1658"]
[TimeControl "720+3"]
[EndTime "6:48:11 PDT"]
[Termination "Partita patta per ripetizione di mosse"]

1. e3 {[%clk 0:12:02.9]} 1... d5 {[%clk 0:11:56]} 2. b3 {[%clk 0:12:01.4]} 2...
Bf5 {[%clk 0:11:45.5]} 3. Bb2 {[%clk 0:12:01.2]} 3... e6 {[%clk 0:11:42]} 4. Nf3
{[%clk 0:12:00.2]} 4... Nf6 {[%clk 0:11:41.4]} 5. d3 {[%clk 0:11:56.2]} 5... Be7
{[%clk 0:11:36.7]} 6. Nbd2 {[%clk 0:11:56]} 6... c5 {[%clk 0:11:37.2]} 7. d4
{[%clk 0:11:54.9]} 7... Nc6 {[%clk 0:11:35.3]} 8. dxc5 {[%clk 0:11:47.1]} 8...
Bxc5 {[%clk 0:11:32.3]} 9. Bb5 {[%clk 0:11:48.8]} 9... O-O {[%clk 0:11:32]} 10.
Bxc6 {[%clk 0:11:49.5]} 10... bxc6 {[%clk 0:11:31.6]} 11. O-O {[%clk 0:11:51.2]}
11... Bd6 {[%clk 0:11:26.6]} 12. Ne5 {[%clk 0:11:48.6]} 12... Qc7 {[%clk
0:11:18.6]} 13. f4 {[%clk 0:11:18.3]} 13... Rad8 {[%clk 0:10:35.9]} 14. Ndf3
{[%clk 0:11:06.2]} 14... h6 {[%clk 0:10:27.2]} 15. Qc1 {[%clk 0:10:48.5]} 15...
Ne4 {[%clk 0:10:19.3]} 16. Nh4 {[%clk 0:10:14.8]} 16... Bh7 {[%clk 0:09:05.1]}
17. c4 {[%clk 0:09:59.9]} 17... Rc8 {[%clk 0:07:45.7]} 18. Rd1 {[%clk
0:09:09.2]} 18... Qe7 {[%clk 0:07:41.2]} 19. Nhf3 {[%clk 0:09:01.5]} 19... Rfd8
{[%clk 0:07:06]} 20. a3 {[%clk 0:08:36.5]} 20... Qb7 {[%clk 0:06:28.9]} 21. b4
{[%clk 0:08:31.5]} 21... a6 {[%clk 0:06:19.1]} 22. c5 {[%clk 0:08:29.7]} 22...
Bc7 {[%clk 0:06:02.9]} 23. Nd2 {[%clk 0:08:29]} 23... a5 {[%clk 0:06:02.7]} 24.
Nxe4 {[%clk 0:08:29]} 24... Bxe4 {[%clk 0:06:03.1]} 25. Qc3 {[%clk 0:08:22.2]}
25... axb4 {[%clk 0:05:49.4]} 26. axb4 {[%clk 0:08:21.4]} 26... f6 {[%clk
0:04:10.2]} 27. Ng4 {[%clk 0:08:18.4]} 27... Rf8 {[%clk 0:04:00.2]} 28. Nf2
{[%clk 0:08:05.1]} 28... Bg6 {[%clk 0:03:54.5]} 29. Ra4 {[%clk 0:07:58.9]} 29...
Ra8 {[%clk 0:03:52.2]} 30. Rda1 {[%clk 0:08:00.3]} 30... Rxa4 {[%clk 0:03:52.6]}
31. Rxa4 {[%clk 0:08:01.9]} 31... Ra8 {[%clk 0:03:55.1]} 32. Rxa8+ {[%clk
0:08:02.6]} 32... Qxa8 {[%clk 0:03:57.1]} 33. Ng4 {[%clk 0:08:01.4]} 33... Bd8
{[%clk 0:03:43.2]} 34. h3 {[%clk 0:07:52.6]} 34... Qa4 {[%clk 0:03:21.3]} 35.
Nf2 {[%clk 0:07:39.3]} 35... Kf7 {[%clk 0:02:57.9]} 36. Kh2 {[%clk 0:07:33]}
36... Qa2 {[%clk 0:02:55.2]} 37. h4 {[%clk 0:06:52.6]} 37... Qa4 {[%clk
0:02:47.2]} 38. g4 {[%clk 0:06:31.6]} 38... Qc2 {[%clk 0:02:42.4]} 39. Kg3
{[%clk 0:06:07.4]} 39... Qxc3 {[%clk 0:02:41]} 40. Bxc3 {[%clk 0:06:08.8]} 40...
Bc7 {[%clk 0:02:38.9]} 41. Kf3 {[%clk 0:06:06.1]} 41... h5 {[%clk 0:02:35.4]}
42. g5 {[%clk 0:05:25.7]} 42... Bf5 {[%clk 0:02:33.8]} 43. Kg3 {[%clk
0:04:15.9]} 43... e5 {[%clk 0:02:28.6]} 44. Kf3 {[%clk 0:04:06.2]} 44... Ke6
{[%clk 0:02:02.5]} 45. Kg3 {[%clk 0:03:59.6]} 45... Bc2 {[%clk 0:01:57.1]} 46.
Kf3 {[%clk 0:03:50.4]} 46... Kf5 {[%clk 0:01:57.3]} 47. gxf6 {[%clk 0:03:36.2]}
47... gxf6 {[%clk 0:01:56.1]} 48. fxe5 {[%clk 0:03:27.1]} 48... fxe5 {[%clk
0:01:54.7]} 49. Bd2 {[%clk 0:03:16.6]} 49... Bd8 {[%clk 0:01:46.9]} 50. Kg3
{[%clk 0:03:13.2]} 50... d4 {[%clk 0:01:39.9]} 51. exd4 {[%clk 0:03:03.2]} 51...
exd4 {[%clk 0:01:41.4]} 52. Nh3 {[%clk 0:02:51.3]} 52... Ke5 {[%clk 0:01:32.2]}
53. Nf4 {[%clk 0:02:46.3]} 53... Bd1 {[%clk 0:01:23.7]} 54. Ng6+ {[%clk
0:02:31.6]} 54... Kd5 {[%clk 0:01:16.9]} 55. Nf8 {[%clk 0:02:23.5]} 55... Kc4
{[%clk 0:01:03]} 56. Nd7 {[%clk 0:02:18.7]} 56... Kd3 {[%clk 0:01:03]} 57. Bg5
{[%clk 0:02:12.4]} 57... Bc7+ {[%clk 0:01:04.8]} 58. Kf2 {[%clk 0:02:09.1]}
58... Bg4 {[%clk 0:01:02.6]} 59. Nf6 {[%clk 0:02:05.9]} 59... Bd1 {[%clk
0:00:48.7]} 60. Ke1 {[%clk 0:02:04.8]} 60... Kc2 {[%clk 0:00:49.7]} 61. Ne4
{[%clk 0:01:53.6]} 61... Bf3 {[%clk 0:00:36.5]} 62. Nd2 {[%clk 0:01:30.8]} 62...
Bg3+ {[%clk 0:00:38]} 63. Kf1 {[%clk 0:01:23.2]} 63... Kc3 {[%clk 0:00:34.1]}
64. Nxf3 {[%clk 0:01:23.5]} 64... Kxb4 {[%clk 0:00:31.9]} 65. Be7 {[%clk
0:01:20.7]} 65... d3 {[%clk 0:00:26.7]} 66. Nd2 {[%clk 0:01:13.6]} 66... Bxh4
{[%clk 0:00:24.5]} 67. Bxh4 {[%clk 0:01:14]} 67... Kxc5 {[%clk 0:00:27]} 68. Kf2
{[%clk 0:01:10.1]} 68... Kd4 {[%clk 0:00:27.6]} 69. Nf3+ {[%clk 0:01:03.3]}
69... Ke4 {[%clk 0:00:25]} 70. Bg5 {[%clk 0:01:04.1]} 70... c5 {[%clk
0:00:25.5]} 71. Nd2+ {[%clk 0:01:03.2]} 71... Kd4 {[%clk 0:00:25.3]} 72. Nf3+
{[%clk 0:00:59.6]} 72... Ke4 {[%clk 0:00:26.7]} 73. Nd2+ {[%clk 0:01:01.1]}
73... Kd4 {[%clk 0:00:28.5]} 74. Nf3+ {[%clk 0:01:00.8]} 74... Ke4 {[%clk
0:00:30.5]} 1/2-1/2

[Event "Sabato rapido!"]
[Site "Chess.com"]
[Date "2020.05.16"]
[Round "3"]
[White "laremaro"]
[Black "SanSecondoPR"]
[Result "0-1"]
[WhiteElo "1634"]
[BlackElo "1281"]
[TimeControl "720+3"]
[EndTime "7:06:18 PDT"]
[Termination "SanSecondoPR ha vinto per abbandono"]

1. d4 {[%clk 0:12:02.9]} 1... d5 {[%clk 0:12:00]} 2. c4 {[%clk 0:11:58.3]} 2...
e5 {[%clk 0:11:58.8]} 3. dxe5 {[%clk 0:11:53.9]} 3... d4 {[%clk 0:11:56.9]} 4.
Nf3 {[%clk 0:11:52.1]} 4... Nc6 {[%clk 0:11:57.2]} 5. g3 {[%clk 0:11:49.4]} 5...
Bg4 {[%clk 0:11:48.7]} 6. Bg2 {[%clk 0:11:50]} 6... Nge7 {[%clk 0:11:43.5]} 7.
a3 {[%clk 0:11:45.2]} 7... Ng6 {[%clk 0:11:43.8]} 8. Bg5 {[%clk 0:11:28.1]} 8...
Be7 {[%clk 0:11:43.5]} 9. Bxe7 {[%clk 0:11:25.6]} 9... Qxe7 {[%clk 0:11:43.3]}
10. Nbd2 {[%clk 0:11:27.7]} 10... O-O-O {[%clk 0:11:35.4]} 11. b4 {[%clk
0:11:27.1]} 11... d3 {[%clk 0:11:17.6]} 12. e3 {[%clk 0:11:17.1]} 12... Ncxe5
{[%clk 0:11:11.4]} 13. h3 {[%clk 0:11:10.7]} 13... Nxf3+ {[%clk 0:10:43.5]} 14.
Bxf3 {[%clk 0:11:00.5]} 14... Bxf3 {[%clk 0:10:41]} 15. Qxf3 {[%clk 0:11:02.6]}
15... Ne5 {[%clk 0:10:36.1]} 16. Qf5+ {[%clk 0:10:06.4]} 16... Rd7 {[%clk
0:10:19.6]} 17. O-O-O {[%clk 0:08:53.9]} 17... g6 {[%clk 0:10:15.3]} 18. Qe4
{[%clk 0:08:40.8]} 18... f5 {[%clk 0:10:06.7]} 19. Qf4 {[%clk 0:08:28.1]} 19...
Rf8 {[%clk 0:09:44]} 20. h4 {[%clk 0:08:26.3]} 20... Qg7 {[%clk 0:09:25.8]} 21.
Nb1 {[%clk 0:07:35.8]} 21... Rfd8 {[%clk 0:09:04]} 22. Kd2 {[%clk 0:07:33.9]}
22... Ng4 {[%clk 0:07:41.6]} 23. Nc3 {[%clk 0:07:19]} 23... Nf6 {[%clk
0:07:03.2]} 24. Qe5 {[%clk 0:06:42.9]} 24... Re7 {[%clk 0:06:44.7]} 25. Qa5
{[%clk 0:06:40.3]} 25... Kb8 {[%clk 0:06:24.7]} 26. f3 {[%clk 0:06:24.9]} 26...
Nd7 {[%clk 0:06:09.4]} 27. c5 {[%clk 0:04:17.2]} 27... Ne5 {[%clk 0:06:06.8]}
0-1

[Event "Sabato rapido!"]
[Site "Chess.com"]
[Date "2020.05.16"]
[Round "3"]
[White "crippo"]
[Black "sirmale49"]
[Result "0-1"]
[WhiteElo "1503"]
[BlackElo "1427"]
[TimeControl "720+3"]
[EndTime "7:08:15 PDT"]
[Termination "sirmale49 ha vinto per abbandono"]

1. e4 {[%clk 0:12:02.9]} 1... d5 {[%clk 0:11:49.2]} 2. exd5 {[%clk 0:12:01.7]}
2... Qxd5 {[%clk 0:11:51.1]} 3. d4 {[%clk 0:12:03.5]} 3... c6 {[%clk 0:11:50.3]}
4. Nc3 {[%clk 0:12:04.2]} 4... Qd6 {[%clk 0:11:52]} 5. Nf3 {[%clk 0:12:05.1]}
5... Bg4 {[%clk 0:11:53.3]} 6. Be2 {[%clk 0:12:06.8]} 6... Nf6 {[%clk
0:11:54.9]} 7. O-O {[%clk 0:12:08]} 7... Nbd7 {[%clk 0:11:44.7]} 8. h3 {[%clk
0:12:07.5]} 8... Bf5 {[%clk 0:11:44.6]} 9. Nh4 {[%clk 0:12:07.5]} 9... Bg6
{[%clk 0:11:42.2]} 10. Bf3 {[%clk 0:12:05.4]} 10... e6 {[%clk 0:11:37.4]} 11.
Re1 {[%clk 0:12:03.5]} 11... Nb6 {[%clk 0:11:24.8]} 12. Ne4 {[%clk 0:12:03.7]}
12... Nxe4 {[%clk 0:11:23.3]} 13. Bxe4 {[%clk 0:12:04.9]} 13... Bxe4 {[%clk
0:11:24.3]} 14. Rxe4 {[%clk 0:12:06.1]} 14... Be7 {[%clk 0:11:16.7]} 15. Nf3
{[%clk 0:12:01.6]} 15... Nd5 {[%clk 0:11:07.4]} 16. c4 {[%clk 0:12:01.1]} 16...
Nf6 {[%clk 0:11:08.3]} 17. Bf4 {[%clk 0:12:00.4]} 17... Qd8 {[%clk 0:10:38.7]}
18. Re5 {[%clk 0:12:00]} 18... Bd6 {[%clk 0:10:36.6]} 19. Qb3 {[%clk 0:11:45.9]}
19... Rb8 {[%clk 0:10:20.1]} 20. Bg5 {[%clk 0:11:46]} 20... h6 {[%clk
0:10:13.7]} 21. Bxf6 {[%clk 0:11:46.1]} 21... Qxf6 {[%clk 0:10:14]} 22. Ra5
{[%clk 0:11:41.5]} 22... a6 {[%clk 0:10:04.5]} 23. c5 {[%clk 0:11:37.5]} 23...
Bc7 {[%clk 0:09:59.9]} 24. Ra4 {[%clk 0:11:38.1]} 24... O-O {[%clk 0:09:54.7]}
25. Re1 {[%clk 0:11:37.4]} 25... Rfd8 {[%clk 0:09:44.6]} 26. Ra3 {[%clk
0:11:35.5]} 26... Rd5 {[%clk 0:08:49.3]} 27. Qe3 {[%clk 0:11:34.9]} 27... g5
{[%clk 0:08:31.1]} 28. Qe4 {[%clk 0:11:31.4]} 28... Qf5 {[%clk 0:08:16.1]} 29.
Rd3 {[%clk 0:11:25.2]} 29... Rbd8 {[%clk 0:08:00.6]} 30. a3 {[%clk 0:11:17.9]}
30... b6 {[%clk 0:07:23.3]} 31. b4 {[%clk 0:11:16.5]} 31... bxc5 {[%clk
0:07:22.1]} 32. bxc5 {[%clk 0:11:16.3]} 32... Qf4 {[%clk 0:06:33.8]} 33. Qxf4
{[%clk 0:10:33.5]} 33... Bxf4 {[%clk 0:06:31.7]} 34. Rb3 {[%clk 0:10:27.7]}
34... Bc7 {[%clk 0:06:22.3]} 35. Rb7 {[%clk 0:10:25.8]} 35... R8d7 {[%clk
0:06:11]} 36. Ra7 {[%clk 0:10:24.4]} 36... a5 {[%clk 0:06:10.3]} 37. Ra8+ {[%clk
0:10:23.7]} 37... Kg7 {[%clk 0:06:09.7]} 38. Rb1 {[%clk 0:10:22.8]} 38... e5
{[%clk 0:05:55.4]} 39. dxe5 {[%clk 0:10:17.1]} 39... Rd1+ {[%clk 0:05:43.4]} 40.
Rxd1 {[%clk 0:10:14.6]} 40... Rxd1+ {[%clk 0:05:44.5]} 41. Kh2 {[%clk
0:10:15.5]} 41... Rd5 {[%clk 0:05:44.8]} 42. Re8 {[%clk 0:10:13.5]} 42... Rxc5
{[%clk 0:05:41.7]} 43. g3 {[%clk 0:10:11.8]} 43... Rc3 {[%clk 0:05:38.5]} 44.
Kg2 {[%clk 0:10:11.5]} 44... Rxa3 {[%clk 0:05:38.5]} 45. e6 {[%clk 0:10:12]}
45... Bd6 {[%clk 0:05:17.9]} 46. Rd8 {[%clk 0:10:01.5]} 46... Be7 {[%clk
0:05:01.3]} 47. Rd7 {[%clk 0:10:02.8]} 47... Kf6 {[%clk 0:05:02]} 48. exf7
{[%clk 0:10:03.7]} 48... Kxf7 {[%clk 0:05:01.4]} 49. Nd4 {[%clk 0:09:56.1]}
49... Ke8 {[%clk 0:04:55.6]} 50. Rb7 {[%clk 0:09:52.9]} 50... c5 {[%clk
0:04:44.8]} 51. Nb5 {[%clk 0:09:51]} 51... Ra1 {[%clk 0:04:36.2]} 52. Nc7+
{[%clk 0:09:46]} 52... Kf8 {[%clk 0:04:29.8]} 53. Ne6+ {[%clk 0:09:47]} 53...
Kf7 {[%clk 0:04:29.3]} 54. Nd8+ {[%clk 0:09:48.9]} 54... Ke8 {[%clk 0:04:27.9]}
55. Nc6 {[%clk 0:09:48.7]} 55... Re1 {[%clk 0:04:22]} 56. Nxa5 {[%clk
0:09:48.4]} 56... Kf8 {[%clk 0:03:50.7]} 57. Nc4 {[%clk 0:09:48.9]} 57... Bf6
{[%clk 0:03:47.1]} 58. Nd6 {[%clk 0:09:31.4]} 58... Bd4 {[%clk 0:03:45.6]} 59.
Rf7+ {[%clk 0:09:29.4]} 59... Kg8 {[%clk 0:03:32.2]} 60. Rf5 {[%clk 0:09:31.2]}
60... Kg7 {[%clk 0:03:23]} 61. Rd5 {[%clk 0:09:14.9]} 61... Kf6 {[%clk
0:03:12.4]} 62. Nb7 {[%clk 0:08:17.2]} 62... Ke6 {[%clk 0:03:06]} 63. Rd7 {[%clk
0:08:18.9]} 0-1

[Event "Sabato rapido!"]
[Site "Chess.com"]
[Date "2020.05.16"]
[Round "3"]
[White "Mrtre7"]
[Black "fausto2p"]
[Result "0-1"]
[WhiteElo "1444"]
[BlackElo "1195"]
[TimeControl "720+3"]
[EndTime "7:13:05 PDT"]
[Termination "fausto2p ha vinto per abbandono"]

1. d4 {[%clk 0:12:02.9]} 1... d5 {[%clk 0:12:00.7]} 2. c4 {[%clk 0:12:04.6]}
2... c6 {[%clk 0:12:01.2]} 3. Nc3 {[%clk 0:12:05.7]} 3... Nf6 {[%clk 0:12:02.4]}
4. Nf3 {[%clk 0:12:06.8]} 4... dxc4 {[%clk 0:12:02.5]} 5. a4 {[%clk 0:12:08.5]}
5... e6 {[%clk 0:12:02]} 6. e3 {[%clk 0:12:05.1]} 6... Bb4 {[%clk 0:12:00.8]} 7.
Bxc4 {[%clk 0:12:06.4]} 7... Ne4 {[%clk 0:11:51.7]} 8. Qc2 {[%clk 0:12:02.8]}
8... Qa5 {[%clk 0:11:44.5]} 9. Bd2 {[%clk 0:11:43.3]} 9... Nxd2 {[%clk
0:11:18.9]} 10. Nxd2 {[%clk 0:11:44.7]} 10... O-O {[%clk 0:11:12]} 11. O-O
{[%clk 0:11:46.2]} 11... Nd7 {[%clk 0:11:05.1]} 12. Nde4 {[%clk 0:11:10.4]}
12... Bxc3 {[%clk 0:10:40.5]} 13. bxc3 {[%clk 0:11:09.5]} 13... Qh5 {[%clk
0:10:11.9]} 14. Ng3 {[%clk 0:10:40.5]} 14... Qh6 {[%clk 0:10:10.3]} 15. e4
{[%clk 0:10:29.8]} 15... Nb6 {[%clk 0:10:08.6]} 16. Bd3 {[%clk 0:10:29.6]} 16...
a5 {[%clk 0:07:47.2]} 17. Rae1 {[%clk 0:08:53]} 17... Bd7 {[%clk 0:07:34.8]} 18.
f4 {[%clk 0:08:50.9]} 18... Rfc8 {[%clk 0:07:14.3]} 19. f5 {[%clk 0:08:40.7]}
19... c5 {[%clk 0:07:02.4]} 20. Qf2 {[%clk 0:08:15.5]} 20... cxd4 {[%clk
0:06:53.3]} 21. fxe6 {[%clk 0:07:39.4]} 21... Bxe6 {[%clk 0:06:53.5]} 22. cxd4
{[%clk 0:07:38.1]} 22... Rc3 {[%clk 0:06:33.5]} 23. d5 {[%clk 0:07:28.7]} 23...
Nxd5 {[%clk 0:05:16.3]} 24. exd5 {[%clk 0:06:57.3]} 24... Bxd5 {[%clk
0:05:12.4]} 25. Bb5 {[%clk 0:05:07.4]} 25... Rac8 {[%clk 0:04:47.8]} 26. Re8+
{[%clk 0:04:59.9]} 26... Rxe8 {[%clk 0:04:41]} 27. Bxe8 {[%clk 0:05:01]} 27...
Qg6 {[%clk 0:04:25.2]} 28. Qd4 {[%clk 0:04:13]} 28... Rd3 {[%clk 0:03:19.4]} 29.
Qe5 {[%clk 0:02:42]} 29... Rd2 {[%clk 0:02:48.9]} 30. Bb5 {[%clk 0:02:23.4]}
30... Rxg2+ {[%clk 0:02:37.9]} 31. Kh1 {[%clk 0:02:25.5]} 31... Rd2+ {[%clk
0:02:24.1]} 32. Kg1 {[%clk 0:02:24.1]} 32... Qb6+ {[%clk 0:02:15.1]} 0-1

[Event "Sabato rapido!"]
[Site "Chess.com"]
[Date "2020.05.16"]
[Round "3"]
[White "pedrak"]
[Black "APipitone"]
[Result "1/2-1/2"]
[WhiteElo "1668"]
[BlackElo "1828"]
[TimeControl "720+3"]
[EndTime "7:14:57 PDT"]
[Termination "Patta per materiale insufficiente"]

1. d4 {[%clk 0:12:02.9]} 1... Nf6 {[%clk 0:11:54.2]} 2. Nf3 {[%clk 0:12:03.4]}
2... d5 {[%clk 0:11:53.9]} 3. Bf4 {[%clk 0:12:03]} 3... g6 {[%clk 0:11:49.1]} 4.
h3 {[%clk 0:12:02.9]} 4... Bg7 {[%clk 0:11:49.9]} 5. e3 {[%clk 0:12:04.3]} 5...
Nc6 {[%clk 0:11:41.9]} 6. Be2 {[%clk 0:12:04.9]} 6... O-O {[%clk 0:11:40.7]} 7.
O-O {[%clk 0:12:04.6]} 7... Re8 {[%clk 0:11:33.3]} 8. Ne5 {[%clk 0:12:05.5]}
8... Nxe5 {[%clk 0:11:30]} 9. Bxe5 {[%clk 0:12:06.4]} 9... Ne4 {[%clk 0:11:13]}
10. Bxg7 {[%clk 0:12:06.5]} 10... Kxg7 {[%clk 0:11:13.6]} 11. c4 {[%clk
0:12:03.4]} 11... c6 {[%clk 0:11:07.4]} 12. Qc2 {[%clk 0:12:03.5]} 12... f5
{[%clk 0:10:49.8]} 13. f3 {[%clk 0:11:56.8]} 13... Ng3 {[%clk 0:10:43]} 14. Re1
{[%clk 0:11:58]} 14... h5 {[%clk 0:10:30.2]} 15. Nc3 {[%clk 0:11:56.3]} 15... e6
{[%clk 0:10:24.6]} 16. Rad1 {[%clk 0:11:39.7]} 16... Qg5 {[%clk 0:10:07.1]} 17.
e4 {[%clk 0:11:26.9]} 17... fxe4 {[%clk 0:09:46.9]} 18. fxe4 {[%clk 0:11:22.7]}
18... Qe3+ {[%clk 0:09:10.8]} 19. Kh2 {[%clk 0:11:03.8]} 19... dxe4 {[%clk
0:08:19.8]} 20. Bf3 {[%clk 0:10:50.9]} 20... Qf4 {[%clk 0:08:14.7]} 21. Nxe4
{[%clk 0:10:27.6]} 21... Nxe4+ {[%clk 0:08:10.6]} 22. Kg1 {[%clk 0:10:29.1]}
22... Ng3 {[%clk 0:07:54.4]} 23. Qd3 {[%clk 0:10:12.5]} 23... e5 {[%clk
0:07:51.3]} 24. dxe5 {[%clk 0:09:53.5]} 24... Bxh3 {[%clk 0:07:27.4]} 25. gxh3
{[%clk 0:09:39.7]} 25... Nf5 {[%clk 0:07:05.3]} 26. Bg2 {[%clk 0:09:22.9]} 26...
Rad8 {[%clk 0:06:48.6]} 27. Qc3 {[%clk 0:09:20.9]} 27... Kh7 {[%clk 0:06:32]}
28. e6 {[%clk 0:09:03.9]} 28... Rxd1 {[%clk 0:06:17.8]} 29. Rxd1 {[%clk
0:09:05.1]} 29... Ne3 {[%clk 0:06:03]} 30. Rd7+ {[%clk 0:08:55.9]} 30... Kh6
{[%clk 0:05:22.8]} 31. Rf7 {[%clk 0:07:47.8]} 31... Nf5 {[%clk 0:04:34.5]} 32.
Qe1 {[%clk 0:05:32.7]} 32... Qd4+ {[%clk 0:04:05.7]} 33. Kh1 {[%clk 0:05:15.3]}
33... Qf4 {[%clk 0:03:35.9]} 34. e7 {[%clk 0:04:20.8]} 34... Ng3+ {[%clk
0:03:00.1]} 35. Kg1 {[%clk 0:04:16.2]} 35... Qxf7 {[%clk 0:02:56.5]} 36. Qxg3
{[%clk 0:04:17]} 36... Rxe7 {[%clk 0:02:50.1]} 37. h4 {[%clk 0:04:17.6]} 37...
Qf5 {[%clk 0:02:36]} 38. Qd6 {[%clk 0:04:09.4]} 38... Re1+ {[%clk 0:02:25.9]}
39. Kh2 {[%clk 0:04:08.8]} 39... Qe5+ {[%clk 0:02:25.3]} 40. Qxe5 {[%clk
0:04:10.4]} 40... Rxe5 {[%clk 0:02:24]} 41. b4 {[%clk 0:04:11.5]} 41... Re2
{[%clk 0:02:23.8]} 42. a4 {[%clk 0:04:10.5]} 42... Re4 {[%clk 0:02:16.7]} 43. b5
{[%clk 0:04:10.6]} 43... cxb5 {[%clk 0:02:13.7]} 44. Bxe4 {[%clk 0:04:11.1]}
44... bxa4 {[%clk 0:02:07.7]} 45. Bxb7 {[%clk 0:04:11.8]} 45... a3 {[%clk
0:02:06.3]} 46. c5 {[%clk 0:04:09.4]} 46... a2 {[%clk 0:02:07.1]} 47. c6 {[%clk
0:04:10]} 47... a1=Q {[%clk 0:02:03.8]} 48. Kg3 {[%clk 0:04:04.3]} 48... Qe5+
{[%clk 0:02:06.7]} 49. Kf3 {[%clk 0:04:05.8]} 49... Qf5+ {[%clk 0:02:04.3]} 50.
Ke3 {[%clk 0:04:07.4]} 50... Qe5+ {[%clk 0:02:00.9]} 51. Kd3 {[%clk 0:04:08.9]}
51... g5 {[%clk 0:01:56.9]} 52. hxg5+ {[%clk 0:04:09.7]} 52... Kxg5 {[%clk
0:01:57.2]} 53. Kc4 {[%clk 0:04:11.5]} 53... h4 {[%clk 0:01:58.8]} 54. Bc8
{[%clk 0:03:51.7]} 54... h3 {[%clk 0:02:01.7]} 55. Bxh3 {[%clk 0:03:52.6]} 55...
Qd6 {[%clk 0:01:57.9]} 56. Bd7 {[%clk 0:03:50.3]} 56... a5 {[%clk 0:01:57]} 57.
Kb5 {[%clk 0:03:51.5]} 57... Qb4+ {[%clk 0:01:52.5]} 58. Ka6 {[%clk 0:03:52.1]}
58... a4 {[%clk 0:01:49.4]} 59. c7 {[%clk 0:03:46.8]} 59... a3 {[%clk
0:01:46.6]} 60. c8=Q {[%clk 0:03:46.2]} 60... a2 {[%clk 0:01:33]} 61. Qg8+
{[%clk 0:03:44.5]} 61... Kf6 {[%clk 0:01:25.5]} 62. Qxa2 {[%clk 0:03:44.4]}
62... Qd6+ {[%clk 0:01:20.5]} 63. Ka5 {[%clk 0:03:39.7]} 63... Qxd7 {[%clk
0:01:19.6]} 64. Qf2+ {[%clk 0:03:39.4]} 64... Kg5 {[%clk 0:01:16]} 65. Qg3+
{[%clk 0:03:39.5]} 65... Qg4 {[%clk 0:01:12]} 66. Qxg4+ {[%clk 0:03:40.5]} 66...
Kxg4 {[%clk 0:01:11.7]} 1/2-1/2